fUSD/lending_fUSD_20250708
["ID","MTS","AMOUNT","RATE_DAILY","PERIOD"]
[370359167,1751979047455,-460.0,0.00024657,2]
[370359168,1751979047464,-460.0,0.00024657,2]
[370359169,1751979047475,-460.0,0.00024657,2]
[370359170,1751979047485,-460.0,0.00024657,2]
[370359171,1751979047495,-171.98239001,0.00024657,2]
[370359172,1751979047504,-630.33,0.00024657,2]
[370359173,1751979047514,-460.0,0.00024657,2]
[370359174,1751979047523,-692.77,0.00024657,2]
[370359175,1751979047533,-460.0,0.00024657,2]
[370359176,1751979047542,-460.0,0.00024657,2]
[370359177,1751979047551,-460.0,0.00024657,2]
[370359178,1751979047561,-460.0,0.00024657,2]
[370359179,1751979047571,-503.88,0.00024657,2]
[370359180,1751979047580,-365.20927507,0.00024657,2]
[370359181,1751979047590,-2058.35,0.00024657,2]
[370359182,1751979047599,-460.0,0.00024657,2]
[370359183,1751979047609,-1324.28,0.00024657,2]
[370359184,1751979047618,-460.0,0.00024657,2]
[370359185,1751979047628,-460.16,0.00024657,2]
[370359186,1751979047638,-460.0,0.00024657,2]
[370359187,1751979047647,-460.0,0.00024657,2]
[370359188,1751979047657,-460.0,0.00024657,2]
[370359189,1751979047666,-460.0,0.00024657,2]
[370359190,1751979047675,-460.0,0.00024657,2]
[370359191,1751979047685,-460.0,0.00024657,2]
[370359192,1751979047694,-694.18,0.00024657,2]
[370359193,1751979047704,-460.0,0.00024657,2]
[370359194,1751979047713,-460.0,0.00024657,2]
[370359195,1751979047723,-460.0,0.00024657,2]
[370359196,1751979047733,-460.0,0.00024657,2]
[370359197,1751979047742,-552.57460248,0.00024657,2]
[370359198,1751979047751,-596.33,0.00024657,2]
[370359199,1751979047760,-529.12,0.00024657,2]
[370359200,1751979047770,-460.0,0.00024657,2]
[370359201,1751979047779,-460.0,0.00024657,2]
[370359202,1751979047789,-982.87,0.00024657,2]
[370359203,1751979047798,-460.0,0.00024657,2]
[370359204,1751979047808,-460.0,0.00024657,2]
[370359205,1751979047817,-460.0,0.00024657,2]
[370359206,1751979047827,-3491.65,0.00024657,2]
[370359207,1751979047836,-1007.2,0.00024657,2]
[370359208,1751979047846,-460.0,0.00024657,2]
[370359209,1751979047855,-460.0,0.00024657,2]
[370359210,1751979047865,-460.0,0.00024657,2]
[370359211,1751979047875,-460.0,0.00024657,2]
[370359212,1751979047885,-460.0,0.00024657,2]
[370359213,1751979047894,-460.0,0.00024657,2]
[370359214,1751979047904,-768.49,0.00024657,2]
[370359215,1751979047914,-485.53,0.00024657,2]
[370359216,1751979047924,-469.31,0.00024657,2]
[370359217,1751979047934,-210.0484437,0.00024657,2]
[370359218,1751979047943,-460.0,0.00024657,2]
[370359219,1751979047954,-673.16,0.00024657,2]
[370359220,1751979047963,-460.0,0.00024657,2]
[370359221,1751979047974,-460.0,0.00024657,2]
[370359222,1751979047984,-460.0,0.00024657,2]
[370359223,1751979047994,-460.0,0.00024657,2]
[370359224,1751979048005,-519.97,0.00024657,2]
[370359225,1751979048015,-4397.03,0.00024657,2]
[370359226,1751979048025,-460.0,0.00024657,2]
[370359227,1751979048035,-743.11,0.00024657,2]
[370359228,1751979048048,-460.0,0.00024657,2]
[370359229,1751979048059,-460.0,0.00024657,2]
[370359230,1751979048069,-460.0,0.00024657,2]
[370359231,1751979048079,-460.0,0.00024657,2]
[370359232,1751979048090,-483.8,0.00024657,2]
[370359233,1751979048100,-460.0,0.00024657,2]
[370359234,1751979048110,-555.56,0.00024657,2]
[370359235,1751979048120,-500.0,0.00024657,2]
[370359236,1751979048129,-460.0,0.00024657,2]
[370359237,1751979048139,-3274.57,0.00024657,2]
[370359238,1751979048148,-460.0,0.00024657,2]
[370359239,1751979048158,-460.0,0.00024657,2]
[370359240,1751979048167,-460.0,0.00024657,2]
[370359241,1751979048176,-460.0,0.00024657,2]
[370359242,1751979048186,-460.0,0.00024657,2]
[370359243,1751979048195,-586.86,0.00024657,2]
[370359244,1751979048205,-500.0,0.00024657,2]
[370359245,1751979048215,-460.0,0.00024657,2]
[370359246,1751979048225,-460.0,0.00024657,2]
[370359247,1751979048234,-460.0,0.00024657,2]
[370359248,1751979048244,-460.0,0.00024657,2]
[370359249,1751979048253,-460.0,0.00024657,2]
[370359250,1751979048263,-1401.11,0.00024657,2]
[370359252,1751979048273,-460.0,0.00024657,2]
[370359253,1751979048282,-216.7028759,0.00024657,2]
[370359254,1751979048294,-460.0,0.00024657,2]
[370359255,1751979048304,-460.0,0.00024657,2]
[370359257,1751979048313,-1902.41,0.00024657,2]
[370359259,1751979048322,-460.0,0.00024657,2]
[370359261,1751979048333,-460.0,0.00024657,2]
[370359263,1751979048342,-1022.19,0.00024657,2]
[370359265,1751979048352,-460.0,0.00024657,2]
[370359267,1751979048361,-460.0,0.00024657,2]
[370359269,1751979048370,-460.0,0.00024657,2]
[370359271,1751979048380,-881.07,0.00024657,2]
[370359273,1751979048389,-1000.0,0.00024657,2]
[370359275,1751979048404,-460.0,0.00024657,2]
[370359277,1751979048413,-460.0,0.00024657,2]
[370359279,1751979048422,-460.0,0.00024657,2]
[370359281,1751979048431,-1250.11,0.00024657,2]
[370359283,1751979048442,-1514.15,0.00024657,2]
[370359285,1751979048451,-460.0,0.00024657,2]
[370359287,1751979048461,-460.0,0.00024657,2]
[370359289,1751979048471,-460.0,0.00024657,2]
[370359291,1751979048480,-460.0,0.00024657,2]
[370359293,1751979048489,-747.56,0.00024657,2]
[370359295,1751979048498,-460.0,0.00024657,2]
[370359297,1751979048508,-460.0,0.00024657,2]
[370359299,1751979048516,-460.0,0.00024657,2]
[370359301,1751979048525,-460.0,0.00024657,2]
[370359303,1751979048535,-1231.81,0.00024657,2]
[370359305,1751979048544,-460.0,0.00024657,2]
[370359307,1751979048554,-2333.6,0.00024657,2]
[370359309,1751979048563,-460.0,0.00024657,2]
[370359311,1751979048573,-460.0,0.00024657,2]
[370359313,1751979048583,-924.32,0.00024657,2]
[370359315,1751979048592,-632.57,0.00024657,2]
[370359316,1751979048601,-460.0,0.00024657,2]
[370359317,1751979048611,-460.0,0.00024657,2]
[370359318,1751979048620,-763.2,0.00024657,2]
[370359319,1751979048630,-460.0,0.00024657,2]
[370359320,1751979048640,-460.0,0.00024657,2]
[370359321,1751979048649,-839.34,0.00024657,2]
[370359322,1751979048659,-460.0,0.00024657,2]
[370359323,1751979048668,-460.0,0.00024657,2]
[370359324,1751979048678,-460.0,0.00024657,2]
[370359325,1751979048687,-460.0,0.00024657,2]
[370359326,1751979048696,-460.0,0.00024657,2]
[370359327,1751979048706,-948.22,0.00024657,2]
[370359352,1751979048936,-460.0,0.00024657,2]
[370359354,1751979048951,-444.88880585,0.00024657,2]
[370359356,1751979048961,-460.0,0.00024657,2]
[370359358,1751979048971,-460.0,0.00024657,2]
[370359360,1751979048980,-460.0,0.00024657,2]
[370359362,1751979048989,-460.0,0.00024657,2]
[370359364,1751979048999,-3822.34,0.00024657,2]
[370359366,1751979049008,-460.0,0.00024657,2]
[370359368,1751979049018,-880.21,0.00024657,2]
[370359370,1751979049027,-460.0,0.00024657,2]
[370359372,1751979049037,-460.0,0.00024657,2]
[370359374,1751979049047,-3068.42,0.00024657,2]
[370359376,1751979049056,-460.0,0.00024657,2]
[370359378,1751979049066,-1143.65,0.00024657,2]
[370359380,1751979049076,-460.0,0.00024657,2]
[370359382,1751979049085,-460.0,0.00024657,2]
[370359384,1751979049095,-460.0,0.00024657,2]
[370359387,1751979049105,-460.0,0.00024657,2]
[370359389,1751979049115,-460.0,0.00024657,2]
[370359391,1751979049124,-566.29,0.00024657,2]
[370359393,1751979049134,-460.0,0.00024657,2]
[370359395,1751979049144,-460.0,0.00024657,2]
[370359396,1751979049153,-460.0,0.00024657,2]
[370359398,1751979049163,-460.0,0.00024657,2]
[370359400,1751979049175,-1168.88,0.00024657,2]
[370359402,1751979049185,-460.0,0.00024657,2]
[370359404,1751979049194,-460.0,0.00024657,2]
[370359406,1751979049205,-752.33,0.00024657,2]
[370359408,1751979049214,-460.0,0.00024657,2]
[370359410,1751979049224,-674.55,0.00024657,2]
[370359412,1751979049234,-938.46,0.00024657,2]
[370359414,1751979049243,-533.5,0.00024657,2]
[370359416,1751979049253,-748.78,0.00024657,2]
[370359419,1751979049263,-460.0,0.00024657,2]
[370359421,1751979049272,-2643.12,0.00024657,2]
[370359422,1751979049282,-460.0,0.00024657,2]
[370359424,1751979049292,-460.0,0.00024657,2]
[370359426,1751979049301,-460.0,0.00024657,2]
[370359429,1751979049311,-460.0,0.00024657,2]
[370359431,1751979049320,-890.15,0.00024657,2]
[370359433,1751979049330,-460.0,0.00024657,2]
[370359435,1751979049340,-460.0,0.00024657,2]
[370359437,1751979049350,-460.0,0.00024657,2]
[370359439,1751979049359,-460.0,0.00024657,2]
[370359441,1751979049370,-460.0,0.00024657,2]
[370359443,1751979049379,-460.0,0.00024657,2]
[370359445,1751979049388,-460.0,0.00024657,2]
[370359447,1751979049400,-849.46,0.00024657,2]
[370359449,1751979049411,-996.05,0.00024657,2]
[370359451,1751979049420,-940.13,0.00024657,2]
[370359453,1751979049430,-963.44,0.00024657,2]
[370359455,1751979049439,-460.0,0.00024657,2]
[370359457,1751979049450,-945.32,0.00024657,2]
[370359459,1751979049460,-479.88,0.00024657,2]
[370359461,1751979049470,-460.0,0.00024657,2]
[370359463,1751979049480,-719.5,0.00024657,2]
[370359465,1751979049490,-1840.65,0.00024657,2]
[370359467,1751979049500,-460.0,0.00024657,2]
[370359469,1751979049509,-460.0,0.00024657,2]
[370359471,1751979049519,-460.0,0.00024657,2]
[370359473,1751979049528,-460.0,0.00024657,2]
[370359475,1751979049539,-460.0,0.00024657,2]
[370359477,1751979049548,-460.0,0.00024657,2]
[370359479,1751979049558,-460.0,0.00024657,2]
[370359481,1751979049568,-460.0,0.00024657,2]
[370359483,1751979049577,-542.94404629,0.00024657,2]
[370359485,1751979049587,-460.0,0.00024657,2]
[370359486,1751979049597,-502.85,0.00024657,2]
[370359487,1751979049607,-460.0,0.00024657,2]
[370359488,1751979049616,-460.0,0.00024657,2]
[370359489,1751979049626,-678.07,0.00024657,2]
[370359490,1751979049635,-460.0,0.00024657,2]
[370359491,1751979049647,-2954.8,0.00024657,2]
[370359492,1751979049656,-783.03,0.00024657,2]
[370359493,1751979049666,-5309.51,0.00024657,2]
[370359494,1751979049675,-460.0,0.00024657,2]
[370359495,1751979049686,-497.14,0.00024657,2]
[370359496,1751979049696,-460.0,0.00024657,2]
[370359497,1751979049705,-1219.13,0.00024657,2]
[370359498,1751979049715,-460.0,0.00024657,2]
[370359499,1751979049725,-554.35,0.00024657,2]
[370359500,1751979049735,-867.07,0.00024657,2]
[370359501,1751979049744,-460.0,0.00024657,2]
[370359502,1751979049754,-488.34511896,0.00024657,2]
[370359503,1751979049763,-460.0,0.00024657,2]
[370359504,1751979049772,-1408.18,0.00024657,2]
[370359505,1751979049782,-460.0,0.00024657,2]
[370359506,1751979049792,-460.0,0.00024657,2]
[370359507,1751979049802,-460.0,0.00024657,2]
[370359508,1751979049812,-785.67,0.00024657,2]
[370359509,1751979049821,-460.0,0.00024657,2]
[370359510,1751979049831,-460.0,0.00024657,2]
[370359511,1751979049840,-460.0,0.00024657,2]
[370359512,1751979049850,-157.593792,0.00024657,2]
[370359513,1751979049859,-150.870328,0.00024657,2]
[370359514,1751979049870,-468.16,0.00024657,2]
[370359515,1751979049879,-460.0,0.00024657,2]
[370359516,1751979049889,-460.0,0.00024657,2]
[370359517,1751979049899,-460.0,0.00024657,2]
[370359518,1751979049909,-460.0,0.00024657,2]
[370359519,1751979049919,-460.0,0.00024657,2]
[370359520,1751979049929,-1688.18,0.00024657,2]
[370359521,1751979049940,-460.0,0.00024657,2]
[370359522,1751979049950,-460.0,0.00024657,2]
[370359523,1751979049959,-692.95,0.00024657,2]
[370359524,1751979049969,-460.0,0.00024657,2]
[370359525,1751979049979,-460.0,0.00024657,2]
[370359526,1751979049989,-2158.55,0.00024657,2]
[370359527,1751979049998,-460.0,0.00024657,2]
[370359528,1751979050008,-703.92,0.00024657,2]
[370359529,1751979050018,-602.69,0.00024657,2]
[370359530,1751979050028,-460.0,0.00024657,2]
[370359531,1751979050037,-460.0,0.00024657,2]
[370359532,1751979050047,-460.0,0.00024657,2]
[370359533,1751979050056,-838.19,0.00024657,2]
[370359534,1751979050066,-460.0,0.00024657,2]
[370359535,1751979050076,-460.0,0.00024657,2]
[370359536,1751979050085,-460.0,0.00024657,2]
[370359537,1751979050095,-723.54,0.00024657,2]
[370359538,1751979050105,-460.0,0.00024657,2]
[370359539,1751979050115,-749.74,0.00024657,2]
[370359540,1751979050125,-460.0,0.00024657,2]
[370359541,1751979050135,-460.0,0.00024657,2]
[370359542,1751979050144,-537.45,0.00024657,2]
[370359543,1751979050154,-568.71,0.00024657,2]
[370359544,1751979050164,-499.98,0.00024657,2]
[370359545,1751979050173,-840.07,0.00024657,2]
[370359546,1751979050183,-460.0,0.00024657,2]
[370359547,1751979050192,-460.0,0.00024657,2]
[370359548,1751979050202,-547.05,0.00024657,2]
[370359549,1751979050212,-588.69,0.00024657,2]
[370359550,1751979050222,-460.0,0.00024657,2]
[370359551,1751979050232,-460.0,0.00024657,2]
[370359552,1751979050241,-728.47,0.00024657,2]
[370359553,1751979050251,-628.33,0.00024657,2]
[370359554,1751979050261,-675.13,0.00024657,2]
[370359555,1751979050271,-460.0,0.00024657,2]
[370359556,1751979050281,-460.0,0.00024657,2]
[370359557,1751979050291,-506.26,0.00024657,2]
[370359558,1751979050300,-462.88,0.00024657,2]
[370359559,1751979050310,-460.0,0.00024657,2]
[370359560,1751979050320,-701.2,0.00024657,2]
[370359561,1751979050329,-460.0,0.00024657,2]
[370359562,1751979050339,-460.0,0.00024657,2]
[370359563,1751979050349,-509.12,0.00024657,2]
[370359564,1751979050359,-538.53,0.00024657,2]
[370359565,1751979050369,-460.0,0.00024657,2]
[370359566,1751979050378,-460.0,0.00024657,2]
[370359567,1751979050388,-545.31529966,0.00024657,2]
[370359568,1751979050398,-460.0,0.00024657,2]
[370359569,1751979050411,-460.0,0.00024657,2]
[370359570,1751979050423,-1609.96,0.00024657,2]
[370359571,1751979050433,-552.59,0.00024657,2]
[370359572,1751979050443,-845.43,0.00024657,2]
[370359573,1751979050453,-460.0,0.00024657,2]
[370359574,1751979050462,-461.60740163,0.00024657,2]
[370359575,1751979050473,-460.0,0.00024657,2]
[370359576,1751979050483,-460.0,0.00024657,2]
[370359577,1751979050492,-2503.45,0.00024657,2]
[370359578,1751979050501,-460.0,0.00024657,2]
[370359579,1751979050511,-460.0,0.00024657,2]
[370359580,1751979050522,-3672.8,0.00024657,2]
[370359581,1751979050531,-460.0,0.00024657,2]
[370359582,1751979050541,-460.0,0.00024657,2]
[370359583,1751979050551,-1468.88,0.00024657,2]
[370359584,1751979050560,-460.0,0.00024657,2]
[370359585,1751979050570,-460.0,0.00024657,2]
[370359586,1751979050581,-460.0,0.00024657,2]
[370359587,1751979050590,-611.65,0.00024657,2]
[370359588,1751979050600,-460.0,0.00024657,2]
[370359589,1751979050609,-460.0,0.00024657,2]
[370359590,1751979050619,-564.35,0.00024657,2]
[370359591,1751979050629,-460.0,0.00024657,2]
[370359592,1751979050638,-464.27,0.00024657,2]
[370359593,1751979050648,-460.0,0.00024657,2]
[370359594,1751979050657,-166.44084499,0.00024657,2]
[370359595,1751979052847,-398.17636554,0.0002459,2]
[370359596,1751979052856,-293.55915501,0.00024657,2]
[370359597,1751979052865,-660.31,0.00024657,2]
[370359598,1751979052874,-1254.5,0.00024657,2]
[370359599,1751979052884,-460.0,0.00024657,2]
[370359600,1751979052893,-460.0,0.00024657,2]
[370359601,1751979052902,-460.0,0.00024657,2]
[370359602,1751979052912,-3053.16,0.00024657,2]
[370359603,1751979052921,-830.65,0.00024657,2]
[370359604,1751979052931,-332.76238387,0.00024657,2]
[370359605,1751979052941,-460.0,0.00024657,2]
[370359606,1751979052950,-1464.88,0.00024657,2]
[370359607,1751979052959,-460.0,0.00024657,2]
[370359608,1751979052969,-460.0,0.00024657,2]
[370359609,1751979052978,-169.78606151,0.00024657,2]
[370359610,1751979052987,-460.0,0.00024657,2]
[370359611,1751979052996,-460.0,0.00024657,2]
[370359612,1751979053006,-460.0,0.00024657,2]
[370359613,1751979053016,-460.0,0.00024657,2]
[370359614,1751979053025,-460.0,0.00024657,2]
[370359615,1751979053035,-460.0,0.00024657,2]
[370359616,1751979053045,-460.0,0.00024657,2]
[370359617,1751979053055,-460.0,0.00024657,2]
[370359618,1751979053064,-473.67247178,0.00024657,2]
[370359619,1751979053074,-460.0,0.00024657,2]
[370359620,1751979053082,-460.0,0.00024657,2]
[370359621,1751979053091,-947.89,0.00024657,2]
[370359622,1751979053101,-1113.23,0.00024657,2]
[370359623,1751979053111,-460.0,0.00024657,2]
[370359624,1751979053120,-460.0,0.00024657,2]
[370359625,1751979053129,-460.0,0.00024657,2]
[370359626,1751979053138,-460.0,0.00024657,2]
[370359627,1751979053148,-460.0,0.00024657,2]
[370359628,1751979053157,-460.0,0.00024657,2]
[370359629,1751979053166,-460.0,0.00024657,2]
[370359630,1751979053176,-460.0,0.00024657,2]
[370359631,1751979053185,-460.0,0.00024657,2]
[370359632,1751979053195,-1920.45,0.00024657,2]
[370359633,1751979053204,-460.0,0.00024657,2]
[370359634,1751979053214,-460.0,0.00024657,2]
[370359635,1751979053223,-909.11,0.00024657,2]
[370359636,1751979053233,-460.0,0.00024657,2]
[370359637,1751979053243,-1650.05,0.00024657,2]
[370359638,1751979053252,-1282.37,0.00024657,2]
[370359639,1751979053263,-549.59,0.00024657,2]
[370359640,1751979053273,-460.0,0.00024657,2]
[370359641,1751979053283,-460.0,0.00024657,2]
[370359642,1751979053293,-460.0,0.00024657,2]
[370359643,1751979053301,-460.0,0.00024657,2]
[370359644,1751979053309,-460.0,0.00024657,2]
[370359645,1751979053318,-460.0,0.00024657,2]
[370359646,1751979053327,-460.0,0.00024657,2]
[370359647,1751979053336,-510.53,0.00024657,2]
[370359648,1751979053345,-1025.99,0.00024657,2]
[370359649,1751979053354,-491.02,0.00024657,2]
[370359650,1751979053363,-460.0,0.00024657,2]
[370359651,1751979053372,-602.64,0.00024657,2]
[370359652,1751979053381,-460.0,0.00024657,2]
[370359653,1751979053391,-460.0,0.00024657,2]
[370359654,1751979053402,-460.0,0.00024657,2]
[370359655,1751979053412,-1134.25,0.00024657,2]
[370359656,1751979053421,-4301.80681517,0.00024657,2]
[370359657,1751979053433,-1362.38318483,0.00024657,2]
[370359658,1751979053443,-466.2987141,0.00024657,2]
[370359659,1751979053453,-936.97,0.00024657,2]
[370359660,1751979053462,-460.0,0.00024657,2]
[370359661,1751979053472,-460.0,0.00024657,2]
[370359662,1751979053482,-460.0,0.00024657,2]
[370359663,1751979053493,-207.47019879,0.00024657,2]
[370359664,1751979053502,-460.0,0.00024657,2]
[370359665,1751979053511,-2883.15,0.00024657,2]
[370359666,1751979053520,-460.0,0.00024657,2]
[370359667,1751979053529,-603.66,0.00024657,2]
[370359668,1751979053540,-591.79,0.00024657,2]
[370359669,1751979053550,-460.0,0.00024657,2]
[370359670,1751979053559,-460.0,0.00024657,2]
[370359671,1751979053568,-1203.6,0.00024657,2]
[370359672,1751979053579,-460.0,0.00024657,2]
[370359673,1751979053588,-460.0,0.00024657,2]
[370359674,1751979053598,-460.0,0.00024657,2]
[370359675,1751979053608,-460.0,0.00024657,2]
[370359676,1751979053617,-677.12,0.00024657,2]
[370359677,1751979053627,-1336.57,0.00024657,2]
[370359678,1751979053637,-460.0,0.00024657,2]
[370359679,1751979053646,-460.0,0.00024657,2]
[370359680,1751979053655,-460.0,0.00024657,2]
[370359681,1751979053665,-460.0,0.00024657,2]
[370359682,1751979053675,-460.0,0.00024657,2]
[370359683,1751979053684,-460.0,0.00024657,2]
[370359684,1751979053694,-460.0,0.00024657,2]
[370359685,1751979053703,-460.0,0.00024657,2]
[370359686,1751979053712,-1961.12,0.00024657,2]
[370359687,1751979053721,-460.0,0.00024657,2]
[370359688,1751979053730,-460.0,0.00024657,2]
[370359689,1751979053740,-1094.21,0.00024657,2]
[370359690,1751979053749,-460.0,0.00024657,2]
[370359691,1751979053758,-460.0,0.00024657,2]
[370359692,1751979053767,-3055.0,0.00024658,4]
[370359693,1751979053777,-460.0,0.00024659,2]
[370359694,1751979053786,-606.0,0.00024659,2]
[370359695,1751979053799,-460.0,0.00024659,2]
[370359696,1751979053808,-667.59,0.00024659,2]
[370359697,1751979053818,-460.0,0.00024659,2]
[370359698,1751979053828,-460.0,0.00024659,2]
[370359699,1751979053838,-460.0,0.00024659,2]
[370359700,1751979053847,-460.0,0.00024659,2]
[370359701,1751979053857,-460.0,0.00024659,2]
[370359702,1751979053868,-637.61953095,0.00024659,2]
[370359703,1751979053877,-290.4912,0.0002466,2]
[370359704,1751979053886,-500.0,0.0002466,2]
[370359705,1751979053896,-5000.0,0.0002466,2]
[370359706,1751979053906,-500.0,0.0002466,2]
[370359707,1751979053916,-1084.1124,0.0002466,3]
[370359708,1751979053925,-500.0,0.0002466,2]
[370359709,1751979053935,-524.61,0.0002466,2]
[370359710,1751979053944,-2841.16,0.0002466,2]
[370359711,1751979053954,-4952.97,0.0002466,2]
[370359712,1751979053963,-476.61,0.0002466,2]
[370359713,1751979053974,-1402.36,0.0002466,2]
[370359714,1751979053984,-722.55,0.0002466,2]
[370359715,1751979053993,-877.51,0.0002466,2]
[370359716,1751979054002,-647.18,0.0002466,2]
[370359717,1751979054011,-1989.22,0.0002466,2]
[370359718,1751979054020,-907.88,0.00024661,2]
[370359719,1751979054029,-460.0,0.00024661,2]
[370359720,1751979054039,-630.59,0.00024661,2]
[370359721,1751979054049,-1235.21,0.00024661,2]
[370359722,1751979054058,-972.11,0.00024661,2]
[370359723,1751979054273,-1629.79,0.00024661,2]
[370359724,1751979054291,-460.0,0.00024661,2]
[370359725,1751979054301,-460.0,0.00024661,2]
[370359726,1751979054310,-460.0,0.00024661,2]
[370359727,1751979054319,-543.29,0.00024661,2]
[370359728,1751979054329,-492.26,0.00024661,2]
[370359729,1751979054339,-1322.94,0.00024661,2]
[370359730,1751979054348,-1530.89,0.00024661,2]
[370359731,1751979054357,-1368.71,0.00024661,2]
[370359732,1751979054366,-460.0,0.00024661,2]
[370359733,1751979054375,-1830.37,0.00024661,2]
[370359734,1751979054385,-781.11,0.00024661,2]
[370359735,1751979054395,-545.22,0.00024661,2]
[370359736,1751979054408,-460.0,0.00024661,2]
[370359737,1751979054417,-1016.67,0.00024661,2]
[370359738,1751979054426,-1098.31,0.00024661,2]
[370359739,1751979054435,-849.8,0.00024661,2]
[370359740,1751979054446,-500.0,0.00024661,2]
[370359741,1751979054455,-822.65,0.00024661,2]
[370359742,1751979054464,-460.0,0.00024661,2]
[370359743,1751979054474,-460.0,0.00024661,2]
[370359744,1751979054483,-460.0,0.00024661,2]
[370359745,1751979054493,-213.18441222,0.00024662,2]
[370359746,1751979054502,-500.0,0.00024673,2]
[370359747,1751979054511,-500.0,0.00024673,2]
[370359748,1751979054521,-500.0,0.00024673,2]
[370359749,1751979054530,-500.0,0.00024673,2]
[370359750,1751979054539,-500.0,0.00024673,2]
[370359751,1751979054551,-500.0,0.00024673,2]
[370359752,1751979054560,-500.0,0.00024673,2]
[370359753,1751979054569,-3922.64,0.00024687,2]
[370359754,1751979054579,-8413.85169469,0.0002474,2]
[370359755,1751979054588,-294.35920733,0.0002475,2]
[370359756,1751979054597,-500.0,0.00024759,2]
[370359757,1751979054607,-460.0,0.00024759,2]
[370359758,1751979054616,-460.0,0.00024759,2]
[370359759,1751979054625,-471.04,0.00024759,2]
[370359760,1751979054635,-460.0,0.00024759,2]
[370359761,1751979054644,-460.0,0.00024759,2]
[370359762,1751979054654,-460.0,0.00024759,2]
[370359763,1751979054663,-460.0,0.00024759,2]
[370359764,1751979054673,-460.0,0.00024759,2]
[370359765,1751979054683,-460.0,0.00024759,2]
[370359766,1751979054692,-308.18465661,0.00024759,2]
[370359767,1751979054701,-460.0,0.00024759,2]
[370359768,1751979054712,-500.0,0.00024759,2]
[370359769,1751979054722,-647.87,0.00024759,2]
[370359770,1751979054731,-460.0,0.00024759,2]
[370359771,1751979054741,-1008.32,0.00024759,2]
[370359772,1751979054752,-829.15,0.00024759,2]
[370359773,1751979054762,-546.07,0.00024759,2]
[370359774,1751979054772,-500.0,0.00024759,2]
[370359775,1751979054781,-674.17,0.00024759,2]
[370359776,1751979054790,-500.0,0.00024759,2]
[370359777,1751979054801,-541.88,0.00024759,2]
[370359778,1751979054810,-752.9,0.00024759,2]
[370359779,1751979054820,-588.22,0.00024759,2]
[370359780,1751979054830,-1937.02,0.00024759,2]
[370359781,1751979054840,-1813.84,0.00024759,2]
[370359782,1751979054849,-2798.02,0.00024759,2]
[370359783,1751979054858,-593.57,0.00024759,2]
[370359784,1751979054868,-1371.59,0.00024759,2]
[370359785,1751979054877,-1062.65,0.00024759,2]
[370359786,1751979054887,-2809.68,0.00024759,2]
[370359787,1751979054896,-1629.67,0.00024759,2]
[370359788,1751979054905,-1149.45,0.00024759,2]